bitfinex/quotes_ETHUSD_20251023
["timestamp","ask_amount","ask_price","bid_price","bid_amount"]
[1761187581610,0.76940825,3825.1,3825.0,0.002]
[1761187581818,1.32813134,3825.1,3825.0,0.002]
[1761187583206,3.94244207,3825.1,3825.0,0.002]
[1761187583621,1.32813134,3825.1,3825.0,0.002]
[1761187584194,1.11853134,3825.1,3825.0,0.002]
[1761187584522,2.5246735,3825.1,3825.0,0.002]
[1761187585094,1.11853134,3825.1,3825.0,0.002]
[1761187585290,2.52453701,3825.1,3825.0,0.002]
[1761187585517,1.11853134,3825.1,3825.0,0.002]
[1761187587995,2.05569991,3825.1,3825.0,0.002]
[1761187588200,1.49697682,3825.1,3825.0,0.002]
[1761187590030,1.62737682,3825.1,3825.0,0.002]
[1761187590533,0.69020825,3825.1,3825.0,0.002]
[1761187591039,3.30451898,3825.1,3825.0,0.002]
[1761187591236,0.69020825,3825.1,3825.0,0.002]
[1761187592329,1.39309121,3825.1,3825.0,0.002]
[1761187594348,0.69020825,3825.1,3825.0,0.002]
[1761187598236,1.39309121,3825.1,3825.0,0.002]
[1761187598436,0.69020825,3825.1,3825.0,0.002]
[1761187598820,1.39309121,3825.1,3825.0,0.002]
[1761187599020,0.69020825,3825.1,3825.0,0.002]
[1761187602259,0.55980825,3825.1,3825.0,3.42523722]
[1761187602556,0.001,3825.4,3825.3,2.61417405]
[1761187602954,0.001,3825.4,3825.3,3.08787405]
[1761187615573,0.001,3825.4,3825.3,6.46987405]
[1761187617245,0.001,3825.4,3825.3,6.47187405]
[1761187618274,0.001,3825.4,3825.3,6.47187405]
[1761187619856,0.001,3825.4,3825.3,5.99817405]
[1761187620042,0.001,3825.4,3825.3,6.43087405]
[1761187621985,0.001,3825.4,3825.3,0.002]
[1761187622172,0.341,3825.4,3825.3,0.002]
[1761187622491,0.90381225,3825.4,3825.3,0.002]
[1761187622858,1.06448177,3825.4,3825.3,0.002]
[1761187626366,7.05458748,3825.4,3825.3,0.002]
[1761187627184,5.14440145,3825.4,3825.3,0.002]
[1761187628062,5.14485672,3825.4,3825.3,0.002]
[1761187629918,4.93525672,3825.4,3825.3,0.002]
[1761187630098,4.23126383,3825.4,3825.3,0.002]
[1761187630299,4.93525672,3825.4,3825.3,0.002]
[1761187630810,5.14485672,3825.4,3825.3,0.002]
[1761187631413,5.14500972,3825.4,3825.3,0.002]
[1761187634241,4.93540972,3825.4,3825.3,0.002]
[1761187634403,3.94019431,3825.4,3825.3,0.002]
[1761187634731,4.07059431,3825.4,3825.3,3.04887405]
[1761187635727,4.07059431,3825.4,3825.3,0.002]
[1761187640330,3.5074,3825.4,3825.3,0.002]
[1761187640536,4.07067397,3825.4,3825.3,0.002]
[1761187641614,0.69467397,3825.4,3825.3,2.61617405]
[1761187641943,0.001,3825.4,3825.3,6.63462853]
[1761187642508,0.001,3825.4,3825.3,3.31070343]
[1761187644823,0.001,3825.4,3825.3,2.87800343]
[1761187645136,0.001,3825.4,3825.3,3.30720343]
[1761187648811,0.001,3825.4,3825.3,2.87800343]
[1761187649016,0.001,3825.4,3825.3,3.31500343]
[1761187653932,0.001,3825.4,3825.3,4.87020343]
[1761187654128,0.001,3825.4,3825.3,8.35067027]
[1761187654331,0.001,3825.4,3825.3,8.32452853]
[1761187654725,0.001,3825.4,3825.3,8.83140853]
[1761187663783,0.001,3825.4,3825.3,12.05300853]
[1761187670781,0.001,3825.4,3825.3,11.59869906]
[1761187673796,0.001,3825.4,3825.3,11.72909906]
[1761187680859,0.001,3825.4,3825.3,11.83375644]
[1761187684316,0.001,3825.4,3825.3,11.72909906]
[1761187690720,0.5198,3825.4,3825.3,0.002]
[1761187690921,0.5198,3825.4,3825.3,2.61617405]
[1761187690922,1.08441426,3825.4,3825.3,2.61617405]
[1761187691125,1.48351426,3825.4,3825.3,2.61617405]
[1761187691346,1.06725143,3825.4,3825.3,2.61617405]
[1761187691537,0.5198,3825.4,3825.3,2.61617405]
[1761187692846,0.5198,3825.4,3825.3,0.002]
[1761187693050,0.5198,3825.4,3825.3,2.61617405]
[1761187693241,1.08344897,3825.4,3825.3,2.61617405]
[1761187694549,0.5198,3825.4,3825.3,2.61617405]
[1761187696339,0.0571,3825.4,3825.3,2.61617405]
[1761187696542,0.5157,3825.4,3825.3,2.61617405]
[1761187699349,0.5157,3825.4,3825.3,0.002]
[1761187699550,1.30098378,3825.4,3825.3,0.002]
[1761187699734,2.04983119,3825.4,3825.3,0.002]
[1761187700356,1.48733207,3825.4,3825.3,0.002]
[1761187700730,1.61773207,3825.4,3825.3,0.002]
[1761187701127,0.83244829,3825.4,3825.3,0.002]
[1761187701327,0.6461,3825.4,3825.3,0.002]
[1761187702828,0.6461,3825.4,3825.3,2.61617405]
[1761187708264,0.6461,3825.4,3825.3,0.002]
[1761187708562,1.20816597,3825.4,3825.3,0.002]
[1761187708762,5.33342303,3825.4,3825.3,0.002]
[1761187709758,7.94752874,3825.4,3825.3,0.002]
[1761187713666,8.65032013,3825.4,3825.3,0.002]
[1761187713877,7.94752874,3825.4,3825.3,0.002]
[1761187714339,8.65032013,3825.4,3825.3,0.002]
[1761187714835,5.33342303,3825.4,3825.3,0.002]
[1761187716456,6.03621442,3825.4,3825.3,0.002]
[1761187718273,0.74956597,3825.4,3825.3,5.48578968]
[1761187718645,1.20816597,3825.4,3825.3,2.61617405]
[1761187722061,0.74956597,3825.4,3825.3,2.61617405]
[1761187722279,0.69346597,3825.4,3825.3,2.61617405]
[1761187723983,1.14806597,3825.4,3825.3,0.002]
[1761187724361,1.14806597,3825.4,3825.3,2.61617405]
[1761187727263,1.14806597,3825.4,3825.3,0.002]
[1761187727885,1.14806597,3825.4,3825.3,2.61617405]
[1761187728409,1.14806597,3825.4,3825.3,0.002]
[1761187728905,1.93340731,3825.4,3825.3,0.002]
[1761187730277,2.6361987,3825.4,3825.3,0.002]
[1761187730478,1.93340731,3825.4,3825.3,0.002]
[1761187731291,2.63838871,3825.4,3825.3,0.002]
[1761187731779,1.14806597,3825.4,3825.3,0.002]
[1761187732381,0.69346597,3825.4,3825.3,0.002]
[1761187732804,1.14806597,3825.4,3825.3,0.002]
[1761187733099,0.69346597,3825.4,3825.3,0.002]
[1761187734084,0.69346597,3825.4,3825.3,2.61617405]
[1761187741710,1.14806597,3825.4,3825.3,0.002]
[1761187742212,1.14806597,3825.4,3825.3,2.61617405]
[1761187742418,1.14806597,3825.4,3825.3,0.002]
[1761187742595,1.14806597,3825.4,3825.3,2.61617405]
[1761187742997,0.69346597,3825.4,3825.3,2.61617405]
[1761187747814,0.56306597,3825.4,3825.3,3.20567059]
[1761187748111,0.56306597,3825.4,3825.3,3.63857059]
[1761187750295,0.001,3825.4,3825.3,3.63857059]
[1761187751011,0.001,3825.4,3825.3,6.96557059]
[1761187751215,0.001,3825.4,3825.3,7.09597059]
[1761187752424,0.001,3825.4,3825.3,7.22637059]
[1761187761017,0.001,3825.4,3825.3,8.78157059]
[1761187773901,0.001,3825.4,3825.3,9.28745059]
[1761187774116,0.001,3825.8,3825.7,7.49262233]
[1761187774330,0.001,3825.8,3825.7,11.98480308]
[1761187774629,0.001,3826.4,3826.3,2.61349083]
[1761187774928,0.001,3826.4,3826.3,9.39341244]
[1761187775100,0.001,3826.4,3826.3,9.86481244]
[1761187775301,0.001,3826.4,3826.3,10.42779469]
[1761187775525,0.001,3826.4,3826.3,11.75372171]
[1761187778934,0.442393,3826.8,3826.7,2.61321765]
[1761187779117,0.566093,3826.8,3826.7,2.61321765]
[1761187781235,0.5629,3826.8,3826.7,2.61321765]
[1761187781408,0.6933,3826.8,3826.7,2.61321765]
[1761187783042,0.6943,3826.8,3826.7,2.61321765]
[1761187785242,1.25748565,3826.8,3826.7,2.61321765]
[1761187788752,0.81828565,3826.8,3826.7,2.61321765]
[1761187789119,1.25748565,3826.8,3826.7,2.61321765]
[1761187792316,0.81828565,3826.8,3826.7,2.61321765]
[1761187792521,0.69458565,3826.8,3826.7,2.61321765]
[1761187792716,1.14348565,3826.8,3826.7,2.61321765]
[1761187797444,0.69458565,3826.8,3826.7,2.61321765]
[1761187802828,1.16428565,3826.8,3826.7,2.61321765]
[1761187804460,0.69458565,3826.8,3826.7,2.61321765]
[1761187805850,1.16428565,3826.8,3826.7,2.61321765]
[1761187806560,1.16428565,3826.8,3826.6,0.002]
[1761187806561,2.61321765,3826.7,3826.6,0.002]
[1761187806728,2.61321765,3826.7,3825.8,0.32019136]
[1761187806729,2.61376408,3825.9,3825.8,0.32019136]
[1761187806929,0.50688,3825.8,3824.5,0.002]
[1761187807164,4.67639073,3825.1,3824.5,0.002]
[1761187807328,2.61451579,3824.8,3824.5,0.002]
[1761187807658,2.17938565,3824.7,3824.5,0.002]
[1761187807860,5.2595698,3824.7,3824.5,0.002]
[1761187808033,3.00969746,3824.7,3824.5,0.002]
[1761187809350,3.71109222,3824.7,3824.5,0.002]
[1761187809548,2.15589222,3824.7,3824.5,0.002]
[1761187809945,1.45449746,3824.7,3824.5,0.002]
[1761187810447,4.06908161,3824.7,3824.5,0.002]
[1761187811245,5.27735637,3824.7,3824.5,0.002]
[1761187811444,4.57596161,3824.7,3824.5,0.002]
[1761187813069,4.78349746,3824.7,3824.5,0.002]
[1761187813362,7.39808161,3824.7,3824.5,0.002]
[1761187813743,4.78349746,3824.7,3824.5,0.002]
[1761187813948,7.39808161,3824.7,3824.5,0.002]
[1761187814565,4.78349746,3824.7,3824.5,0.002]
[1761187814758,7.39808161,3824.7,3824.5,0.002]
[1761187814966,4.78349746,3824.7,3824.5,0.002]
[1761187816736,7.52848161,3824.7,3824.5,0.002]
[1761187820063,7.06288161,3824.7,3824.5,0.002]
[1761187820442,7.16188161,3824.7,3824.5,0.002]
[1761187822461,4.44829746,3824.7,3824.5,0.002]
[1761187823374,7.06288161,3824.7,3824.5,0.002]
[1761187823679,7.16188161,3824.7,3824.5,0.002]
[1761187825651,4.44829746,3824.7,3824.5,0.002]
[1761187825852,4.02258565,3824.7,3824.5,0.002]
[1761187826679,3.89218565,3824.7,3824.5,0.002]
[1761187826880,4.02258565,3824.7,3824.6,2.61665251]
[1761187827191,4.02258565,3824.7,3824.6,3.08215251]
[1761187827769,3.4594,3824.7,3824.6,3.08215251]
[1761187829368,4.019094,3824.7,3824.6,3.08215251]
[1761187830881,3.4594,3824.7,3824.6,3.08215251]
[1761187831284,0.1304,3824.7,3824.6,3.08215251]
[1761187831454,0.1304,3824.7,3824.6,3.93897713]
[1761187832664,0.1304,3824.7,3824.6,5.49417713]
[1761187833262,0.69134175,3824.7,3824.6,4.63735251]
[1761187833692,0.69139535,3824.7,3824.6,4.63735251]
[1761187834195,0.69139535,3824.7,3824.6,4.17185251]
[1761187834368,0.69139535,3824.7,3824.6,4.62585251]
[1761187836099,1.39263954,3824.7,3824.6,1.5572]
[1761187836395,1.39263954,3824.7,3824.6,4.17185251]
[1761187836396,1.62773364,3824.7,3824.6,4.17185251]
[1761187836599,0.69139535,3824.7,3824.6,4.62585251]
[1761187838465,0.69139535,3824.7,3824.6,3.07065251]
[1761187838791,1.62773364,3824.7,3824.6,2.61665251]
[1761187839591,0.69139535,3824.7,3824.6,2.61665251]
[1761187842096,0.69139535,3824.7,3824.6,6.50870418]
[1761187842269,0.56099535,3824.7,3824.6,8.19430418]
[1761187845502,0.001,3824.9,3824.8,2.61451579]
[1761187845704,0.001,3824.9,3824.8,10.3650242]
[1761187845705,0.56394648,3824.9,3824.8,10.3650242]
[1761187846023,0.70494348,3825.3,3825.2,4.16944239]
[1761187846024,0.001,3825.3,3825.2,4.16944239]
[1761187846202,0.001,3825.3,3825.2,10.3647508]
[1761187846379,0.001,3825.3,3825.2,12.18480889]
[1761187846893,0.001,3825.3,3825.2,12.88875237]
[1761187852396,0.001,3825.3,3825.2,11.91400107]
[1761187852785,0.001,3825.3,3825.2,8.58800107]
[1761187852990,0.001,3825.3,3825.2,11.91300107]
[1761187854917,0.001,3825.3,3825.2,12.34363071]
[1761187855215,0.001,3825.3,3825.2,9.01863071]
[1761187855417,0.001,3825.3,3825.2,9.56444396]
[1761187855588,0.001,3825.3,3825.2,9.31450048]
[1761187855919,0.001,3825.3,3825.2,9.44490048]
[1761187856290,0.001,3825.3,3825.2,6.11990048]
[1761187856489,0.001,3825.3,3825.2,9.44490048]
[1761187857203,0.001,3825.3,3825.2,9.57530048]
[1761187861219,0.001,3825.3,3825.2,9.44490048]
[1761187865524,0.001,3825.3,3825.2,9.95178048]
[1761187866425,0.001,3825.7,3825.6,2.61396905]
[1761187866627,0.001,3825.7,3825.6,10.8300124]
[1761187866823,0.001,3825.7,3825.6,10.80387271]
[1761187869997,0.001,3825.7,3825.6,11.31075271]
[1761187873424,0.001,3825.7,3825.6,7.98675271]
[1761187873628,0.001,3825.7,3825.6,8.47868596]
[1761187873835,0.001,3825.7,3825.6,8.04048596]
[1761187874728,0.1,3825.7,3825.6,7.49316905]
[1761187875109,0.001,3825.7,3825.6,7.49316905]
[1761187875711,0.001,3825.7,3825.6,8.06176905]
[1761187875911,0.001,3825.7,3825.6,7.62356905]
[1761187876930,0.001,3825.7,3825.6,4.29956905]
[1761187877110,0.1,3825.7,3825.6,4.8792]
[1761187877316,0.001,3825.7,3825.6,7.49316905]
[1761187878030,0.001,3825.7,3825.6,4.16916905]
[1761187878343,0.001,3825.7,3825.6,7.49316905]
[1761187879616,0.001,3825.7,3825.6,7.93136905]
[1761187879944,0.001,3825.7,3825.6,7.49316905]
[1761187882221,0.1,3825.7,3825.6,7.49316905]
[1761187882623,0.001,3825.7,3825.6,7.49316905]
[1761187883253,0.001,3825.7,3825.6,10.87290099]
[1761187884155,0.001,3825.7,3825.6,9.8183558]
[1761187884760,0.001,3825.7,3825.6,7.49316905]
[1761187884938,0.1,3825.7,3825.6,7.49316905]
[1761187885140,0.001,3825.7,3825.6,7.49316905]
[1761187888768,0.001,3825.7,3825.6,7.93086905]
[1761187888966,0.001,3825.7,3825.6,9.21808292]
[1761187889268,0.001,3825.7,3825.6,8.78038292]
[1761187890076,0.001,3825.7,3825.6,7.49316905]
[1761187890379,0.1,3825.7,3825.6,7.49316905]
[1761187891263,0.1,3825.7,3825.6,4.16916905]
[1761187892176,0.001,3825.7,3825.6,2.61396905]
[1761187892393,0.66372335,3825.7,3825.5,2.61402585]
[1761187892703,0.56372335,3825.6,3825.5,2.61403738]
[1761187893009,0.66272335,3825.6,3825.5,2.61403738]
[1761187893158,0.66272335,3825.6,3825.4,2.6141036]
[1761187893358,0.79312335,3825.5,3825.3,1.5572]
[1761187893587,0.56372335,3825.4,3825.3,4.17137405]
[1761187893781,0.66272335,3825.4,3825.3,4.17137405]
[1761187895910,0.1304,3825.5,3825.4,2.61410571]
[1761187896069,0.69384971,3825.5,3825.4,2.61410571]
[1761187896671,0.79284971,3825.5,3825.4,2.61410571]
[1761187896873,0.69384971,3825.5,3825.4,2.61410571]
[1761187897270,0.69384971,3825.5,3825.4,3.64700369]
[1761187897484,0.001,3825.7,3825.6,2.61396905]
[1761187897717,0.001,3825.7,3825.6,5.93696905]
[1761187897718,0.56434961,3825.7,3825.6,5.93696905]
[1761187900615,0.001,3825.7,3825.6,7.92986905]
[1761187900819,0.001,3825.7,3825.6,9.7120924]
[1761187903120,0.001,3825.7,3825.6,12.03727915]
[1761187903857,0.001,3825.7,3825.6,11.59957915]
[1761187905257,0.001,3825.7,3825.6,12.03727915]
[1761187906752,0.001,3825.7,3825.6,5.9513924]
[1761187907054,0.001,3825.7,3825.6,4.16916905]
[1761187910046,0.001,3825.7,3825.6,5.93696905]
[1761187910245,0.56470224,3825.7,3825.6,5.93696905]
[1761187910444,0.56470224,3825.7,3825.6,7.49216905]
[1761187910630,0.56470224,3825.7,3825.6,4.16916905]
[1761187910830,0.69510224,3825.7,3825.6,7.49216905]
[1761187911030,0.001,3825.7,3825.6,7.49216905]
[1761187912073,0.001,3825.7,3825.6,4.16916905]
[1761187912253,0.66370969,3825.7,3825.6,4.16916905]
[1761187912662,0.56470969,3825.7,3825.6,4.16916905]
[1761187912870,0.66370969,3825.7,3825.6,4.16916905]
[1761187915949,0.56470969,3825.7,3825.6,4.16916905]
[1761187916261,0.56470969,3825.7,3825.6,8.7355152]
[1761187916262,0.001,3825.7,3825.6,8.7355152]
[1761187918432,0.001,3825.7,3825.6,9.1833152]
[1761187920734,0.001,3825.7,3825.6,10.63012317]
[1761187920933,0.001,3825.7,3825.6,11.07792317]
[1761187922684,0.001,3825.7,3825.6,10.63012317]
[1761187924264,0.72664273,3825.7,3825.6,4.16916905]
[1761187925177,0.72664273,3825.7,3825.3,0.002]
[1761187925351,1.43026096,3825.6,3825.4,2.61408808]
[1761187925556,0.56374273,3825.5,3825.3,2.61611471]
[1761187925756,0.56374273,3825.4,3825.3,2.61611471]
[1761187925959,0.72564273,3825.4,3825.3,2.61611471]
[1761187926856,0.72564273,3825.4,3825.3,0.002]
[1761187927282,0.72564273,3825.4,3825.3,2.61617405]
[1761187928089,0.72564273,3825.4,3825.3,0.002]
[1761187928279,0.86876883,3825.4,3825.3,0.002]
[1761187928479,6.08210074,3825.4,3825.3,0.002]
[1761187928826,5.37743962,3825.4,3825.3,0.002]
[1761187929383,0.86872594,3825.4,3825.3,0.002]
[1761187929607,3.48283165,3825.4,3825.3,0.002]
[1761187930104,4.42112265,3825.4,3825.3,0.002]
[1761187931180,3.48283165,3825.4,3825.3,0.002]
[1761187933414,0.80582594,3825.4,3825.3,0.002]
[1761187933816,1.50882367,3825.4,3825.3,0.002]
[1761187934211,1.63922367,3825.4,3825.3,0.002]
[1761187935517,4.96222367,3825.4,3825.3,0.002]
[1761187936419,4.25922594,3825.4,3825.3,0.002]
[1761187942228,4.96222367,3825.4,3825.3,0.002]
[1761187942428,7.57632938,3825.4,3825.3,0.002]
[1761187942811,4.96222367,3825.4,3825.3,0.002]
[1761187945295,6.87333165,3825.4,3825.3,0.002]
[1761187945500,4.86317639,3825.4,3825.3,0.002]
[1761187945702,4.96217639,3825.4,3825.3,0.002]
[1761187948306,4.86317639,3825.4,3825.3,0.002]
[1761187948506,4.16022594,3825.4,3825.3,0.002]
[1761187948904,4.25809284,3825.4,3825.3,0.002]
[1761187949105,4.96130126,3825.4,3825.3,0.002]
[1761187951240,4.71917516,3825.4,3825.3,0.002]
[1761187951405,0.69296674,3825.4,3825.3,3.05807405]
[1761187954041,0.56256674,3825.4,3825.3,3.05807405]
[1761187954941,0.56356674,3825.4,3825.3,3.05807405]
[1761187957142,0.56464319,3825.4,3825.3,3.05807405]
[1761187958751,0.56464319,3825.4,3825.3,0.002]
[1761187959248,0.56464319,3825.4,3825.3,2.61617405]
[1761187961366,3.88664319,3825.4,3825.3,2.61617405]
[1761187961655,3.88664319,3825.4,3825.3,0.002]
[1761187962127,3.98564319,3825.4,3825.3,0.002]
[1761187963422,4.92393419,3825.4,3825.3,0.002]
[1761187968777,5.05433419,3825.4,3825.3,0.002]
[1761187968975,4.95533419,3825.4,3825.3,0.002]
[1761187969851,4.01704319,3825.4,3825.3,0.002]
[1761187971276,4.95533419,3825.4,3825.3,0.002]
[1761187971951,4.01704319,3825.4,3825.3,0.4439]
[1761187972571,4.01704319,3825.4,3825.3,0.002]
[1761187973355,4.01704319,3825.4,3825.3,3.05807405]
[1761187973555,4.01704319,3825.4,3825.3,0.4439]
[1761187974588,4.01704319,3825.4,3825.3,3.05807405]
[1761187974789,4.72170519,3825.4,3825.3,3.05807405]
[1761187975683,4.72170519,3825.4,3825.3,0.4439]
[1761187975887,4.01704319,3825.4,3825.3,0.4439]
[1761187976082,4.72173248,3825.4,3825.3,0.4439]
[1761187976386,4.72175479,3825.4,3825.3,0.4439]
[1761187976691,4.72175479,3825.4,3825.3,3.05807405]
[1761187976872,4.01704319,3825.4,3825.3,3.64886191]
[1761187978271,4.01704319,3825.4,3825.3,0.4439]
[1761187978476,4.01704319,3825.4,3825.3,3.05807405]
[1761187981588,4.01704319,3825.4,3825.3,0.4439]
[1761187981902,4.01704319,3825.4,3825.3,0.002]
[1761187983091,4.72175479,3825.4,3825.3,0.002]
[1761187983972,4.11604319,3825.4,3825.3,0.002]
[1761187984173,5.05433419,3825.4,3825.3,0.002]
[1761187985997,4.95533419,3825.4,3825.3,0.002]
[1761187987908,4.72110658,3825.4,3825.3,3.06097405]
[1761187988109,4.01604319,3825.4,3825.3,0.002]
[1761187988606,4.01604319,3825.4,3825.3,2.61617405]
[1761187989228,4.01604319,3825.4,3825.3,0.002]
[1761187989817,4.51157661,3825.4,3825.3,0.002]
[1761187990132,5.54886761,3825.4,3825.3,0.002]
[1761187990924,5.44986761,3825.4,3825.3,0.002]
[1761187991091,4.95433419,3825.4,3825.3,0.002]
[1761187991293,4.01604319,3825.4,3825.3,0.4468]
[1761187991702,7.1056289,3825.4,3825.3,0.002]
[1761187991924,2.61424239,3825.2,3825.1,0.002]
[1761187992143,4.58881933,3825.2,3825.1,0.002]
[1761187992449,3.27688558,3825.2,3825.1,0.002]
[1761187993933,4.68720749,3825.2,3825.1,0.002]
[1761187996035,0.56364319,3825.2,3825.1,0.002]
[1761187996237,3.17788558,3825.2,3825.1,0.002]
[1761187996445,4.68720749,3825.2,3825.1,0.002]
[1761188000255,3.27688558,3825.2,3825.1,0.002]
[1761188001853,3.91416558,3825.2,3825.1,0.002]
[1761188002151,5.32448749,3825.2,3825.1,0.002]
[1761188002357,4.01889201,3825.2,3825.1,0.002]
[1761188008859,0.79876962,3825.2,3825.1,0.002]
[1761188009058,0.69404319,3825.2,3825.1,0.002]
[1761188009631,0.69404319,3825.2,3825.1,0.6831]
[1761188010256,0.69404319,3825.2,3825.1,0.002]
[1761188013155,0.69404319,3825.2,3825.1,0.45]
[1761188013557,0.69404319,3825.2,3825.1,0.002]
[1761188015270,0.56364319,3825.2,3824.9,0.002]
[1761188015473,0.50688,3825.0,3824.9,0.002]
[1761188015666,3.68490227,3825.0,3824.9,0.002]
[1761188016141,3.78963418,3825.0,3824.9,0.002]
[1761188016345,5.19986639,3825.0,3824.9,0.002]
[1761188016546,3.78963418,3825.0,3824.9,0.002]
[1761188016849,5.19986639,3825.0,3824.9,0.002]
[1761188017072,3.17802227,3825.0,3824.9,0.002]
[1761188017274,4.58825448,3825.0,3824.9,0.002]
[1761188020182,3.27702227,3825.0,3824.9,0.002]
[1761188020388,3.17802227,3825.0,3824.9,0.002]
[1761188021281,3.68490227,3825.0,3824.9,0.002]
[1761188021485,3.12132743,3824.9,3824.8,0.002]
[1761188021779,3.68497062,3824.9,3824.8,0.002]
[1761188022173,3.78970445,3824.9,3824.8,0.002]
[1761188023893,4.07210445,3824.9,3824.8,0.002]
[1761188025256,4.20250445,3824.9,3824.8,0.002]
[1761188028391,6.52866925,3824.9,3824.8,0.002]
[1761188029396,4.10350445,3824.9,3824.8,0.002]
[1761188029797,4.10350445,3824.9,3824.8,0.45]
[1761188029798,0.79877702,3824.9,3824.8,0.45]
[1761188030007,0.69404319,3824.9,3824.8,0.45]
[1761188030690,2.10454869,3824.9,3824.8,0.45]
[1761188031291,0.69404319,3824.9,3824.8,0.45]
[1761188032298,4.01504319,3824.9,3824.8,0.45]
[1761188033073,4.01504319,3824.9,3824.8,3.06451579]
[1761188033699,4.9553081,3824.9,3824.8,3.06451579]
[1761188033997,4.01504319,3824.9,3824.8,3.06451579]
[1761188035006,4.95531583,3824.9,3824.8,3.06451579]
[1761188035803,4.01504319,3824.9,3824.8,3.06451579]
[1761188036373,4.01504319,3824.9,3824.8,0.45]
[1761188036579,4.01504319,3824.9,3824.8,3.06451579]
[1761188040188,4.01504319,3824.9,3824.8,0.002]
[1761188040394,5.45094741,3824.9,3824.8,0.002]
[1761188041383,1.63431583,3824.9,3824.8,0.002]
[1761188041585,4.95431583,3824.9,3824.8,0.4612]
[1761188042887,4.95531583,3824.9,3824.8,0.4612]
[1761188044117,4.95531583,3824.9,3824.8,0.002]
[1761188046222,4.95531583,3824.9,3824.8,0.4612]
[1761188048692,4.95531583,3824.9,3824.8,0.002]
[1761188048893,4.95531583,3824.9,3824.8,0.4612]
[1761188049704,4.95531583,3824.9,3824.8,0.002]
[1761188054499,4.95544296,3824.9,3824.8,0.4612]
[1761188058828,4.95544296,3824.9,3824.8,3.07571579]
[1761188059728,4.95544296,3824.9,3824.8,0.4612]
[1761188060259,4.01504319,3824.9,3824.8,0.4612]
[1761188062313,4.01504319,3824.9,3824.8,3.07571579]
[1761188066244,4.01504319,3824.9,3824.8,0.4612]
[1761188067762,4.01504319,3824.9,3824.8,3.07571579]
[1761188068111,4.95647593,3824.9,3824.8,3.07571579]
[1761188068943,4.57332319,3824.9,3824.6,0.002]
[1761188069141,1.91922694,3824.7,3824.6,0.002]
[1761188069342,2.48287013,3824.7,3824.6,0.002]
[1761188069743,5.09745428,3824.7,3824.6,0.002]
[1761188070346,3.78580734,3824.7,3824.6,0.002]
[1761188070534,1.97538207,3824.7,3824.6,0.002]
[1761188071230,0.56364319,3824.7,3824.6,0.002]
[1761188071628,3.17822734,3824.7,3824.6,0.002]
[1761188071828,0.56364319,3824.7,3824.6,0.002]
[1761188072350,1.97538207,3824.7,3824.6,0.002]
[1761188072539,0.56364319,3824.7,3824.6,0.002]
[1761188073459,3.27892734,3824.7,3824.6,0.002]
[1761188073640,4.69066622,3824.7,3824.6,0.002]
[1761188075135,3.27892734,3824.7,3824.6,0.002]
[1761188075333,4.69066622,3824.7,3824.6,0.002]
[1761188076156,3.27892734,3824.7,3824.6,0.002]
[1761188076355,0.56364319,3824.7,3824.6,0.002]
[1761188077059,0.56364319,3824.7,3824.6,0.4609]
[1761188077242,0.56364319,3824.7,3824.6,0.002]
[1761188078658,3.17822734,3824.7,3824.6,0.002]
[1761188078841,3.58922734,3824.7,3824.6,0.002]
[1761188079038,5.00096622,3824.7,3824.6,0.002]
[1761188079444,4.72036622,3824.7,3824.6,0.002]
[1761188080368,3.30862734,3824.7,3824.6,0.002]
[1761188080958,0.69404319,3824.7,3824.6,0.002]
[1761188081260,3.59102734,3824.7,3824.6,0.002]
[1761188081467,5.00276622,3824.7,3824.6,0.002]
[1761188084356,0.69404319,3824.7,3824.6,0.002]
[1761188087379,0.69404319,3824.7,3824.6,0.4609]
[1761188087671,0.69404319,3824.7,3824.6,0.002]
[1761188087845,1.2367214,3824.7,3824.6,0.002]
[1761188088246,1.2367214,3824.7,3824.6,0.4609]
[1761188092984,1.2367214,3824.7,3824.6,0.002]
[1761188093155,4.03470555,3824.7,3824.6,0.002]
[1761188093357,5.44644443,3824.7,3824.6,0.002]
[1761188095683,5.26404443,3824.7,3824.6,0.002]
[1761188096058,2.64946028,3824.7,3824.6,0.002]
[1761188096584,5.26404443,3824.7,3824.6,0.002]
[1761188096981,2.64946028,3824.7,3824.6,0.002]
[1761188097385,5.26404443,3824.7,3824.6,0.002]
[1761188097989,5.36304443,3824.7,3824.6,0.002]
[1761188098154,3.95130555,3824.7,3824.6,0.002]
[1761188098482,3.85230555,3824.7,3824.6,0.002]
[1761188108589,1.2377214,3824.7,3824.6,0.4768]
[1761188109563,3.85230555,3824.7,3824.6,0.4768]
[1761188109763,3.85230555,3824.7,3824.6,0.002]
[1761188111582,2.61465251,3824.6,3824.5,0.002]
[1761188111779,6.77527089,3824.6,3824.5,0.002]
[1761188115495,4.16061838,3824.6,3824.5,0.002]
[1761188115872,5.57288512,3824.6,3824.5,0.002]
[1761188116902,5.57288512,3824.6,3824.5,0.4768]
[1761188117420,8.18753763,3824.6,3824.5,0.002]
[1761188119389,5.57288512,3824.6,3824.5,0.002]
[1761188119720,5.57288512,3824.6,3824.5,0.4768]
[1761188120421,5.57288512,3824.6,3824.5,0.002]
[1761188120999,5.57288512,3824.6,3824.4,0.002]
[1761188121000,4.67680087,3824.5,3824.4,0.002]
[1761188121225,8.21307513,3824.5,3824.4,0.002]
[1761188121520,5.88532227,3824.5,3824.4,0.002]
[1761188121822,8.31784024,3824.5,3824.4,0.002]
[1761188123313,10.1983519,3824.5,3824.4,0.002]
[1761188123515,8.31784024,3824.5,3824.4,0.002]
[1761188124917,10.19772788,3824.5,3824.4,0.002]
[1761188126536,3.12201114,3823.9,3823.8,0.002]
[1761188126739,7.00265433,3823.9,3823.8,0.002]
[1761188127934,7.00265433,3823.9,3823.8,0.4714]
[1761188128441,7.00265433,3823.9,3823.8,0.002]